fUSD/lending_fUSD_20250611
["ID","MTS","AMOUNT","RATE_DAILY","PERIOD"]
[365458139,1749681057820,-490.0,0.00019506,2]
[365458140,1749681057830,-490.0,0.00019506,2]
[365458141,1749681057840,-490.0,0.00019506,2]
[365458142,1749681057851,-2307.04,0.00019506,2]
[365458143,1749681057861,-490.0,0.00019506,2]
[365458144,1749681057871,-2010.14,0.00019506,2]
[365458145,1749681057882,-1826.73,0.00019506,2]
[365458146,1749681057892,-644.4,0.00019506,2]
[365458147,1749681057902,-490.0,0.00019506,2]
[365458148,1749681057911,-490.0,0.00019506,2]
[365458149,1749681057921,-490.0,0.00019506,2]
[365458150,1749681057930,-917.9,0.00019506,2]
[365458151,1749681057940,-1409.81,0.00019506,2]
[365458152,1749681057950,-3019.45,0.00019506,2]
[365458153,1749681057959,-490.0,0.00019506,2]
[365458154,1749681057969,-490.0,0.00019506,2]
[365458155,1749681057979,-490.0,0.00019506,2]
[365458156,1749681057989,-806.37,0.00019506,2]
[365458157,1749681057999,-1023.95,0.00019506,2]
[365458158,1749681058008,-894.43,0.00019506,2]
[365458159,1749681058018,-490.0,0.00019506,2]
[365458160,1749681058028,-490.0,0.00019506,2]
[365458161,1749681058038,-490.0,0.00019506,2]
[365458162,1749681058048,-490.0,0.00019506,2]
[365458163,1749681058058,-1493.56,0.00019506,2]
[365458164,1749681058068,-3038.48,0.00019506,2]
[365458165,1749681058078,-490.0,0.00019506,2]
[365458166,1749681058292,-490.0,0.00019506,2]
[365458167,1749681058303,-973.159661,0.00019506,2]
[365458168,1749681058313,-490.0,0.00019506,2]
[365458169,1749681058323,-490.0,0.00019506,2]
[365458170,1749681058332,-490.0,0.00019506,2]
[365458171,1749681058341,-1851.3,0.00019506,2]
[365458172,1749681058351,-490.0,0.00019506,2]
[365458173,1749681058362,-744.11,0.00019506,2]
[365458174,1749681058372,-490.0,0.00019506,2]
[365458175,1749681058383,-5490.07,0.00019506,2]
[365458176,1749681058395,-375.39113472,0.00019506,2]
[365458177,1749681058405,-543.22,0.00019506,2]
[365458178,1749681058414,-490.0,0.00019506,2]
[365458179,1749681058423,-490.0,0.00019506,2]
[365458180,1749681058433,-490.0,0.00019506,2]
[365458181,1749681058444,-545.23,0.00019506,2]
[365458182,1749681058455,-490.0,0.00019506,2]
[365458183,1749681058464,-1462.46975045,0.00019506,2]
[365458184,1749681058474,-7065.0,0.00019518,2]
[365458185,1749681058483,-155.0,0.00019518,2]
[365458186,1749681058493,-905.07050405,0.00019519,2]
[365458187,1749681058503,-1037.7176603,0.00019521,2]
[365458188,1749681058512,-266.54619826,0.0001953,2]
[365458189,1749681058522,-500.0,0.00019534,2]
[365458190,1749681058532,-4495.12,0.00019534,2]
[365458191,1749681058542,-2983.70592984,0.00019535,2]
[365458192,1749681058552,-632.33,0.0001954,2]
[365458193,1749681058562,-1037.7176603,0.00019555,2]
[365458194,1749681058572,-905.07050405,0.00019566,2]
[365458195,1749681058582,-1037.7176603,0.0001959,2]
[365458196,1749681058591,-5735.87293742,0.00019598,2]
[365458197,1749681058601,-903.21513,0.00019599,2]
[365458198,1749681058611,-300.0,0.000196,7]
[365458199,1749681058620,-1000.0,0.00019611,2]
[365458200,1749681058631,-905.07050405,0.00019613,2]
[365458201,1749681058642,-1037.7176603,0.00019624,2]
[365458202,1749681058652,-2983.70592984,0.00019626,2]
[365458203,1749681058662,-420.0,0.00019639,2]
[365458204,1749681058672,-266.54619826,0.00019653,2]
[365458205,1749681058682,-1037.7176603,0.00019659,2]
[365458206,1749681058692,-500.0,0.0001967,2]
[365458207,1749681058702,-500.0,0.0001967,2]
[365458208,1749681058712,-500.0,0.0001967,2]
[365458209,1749681058722,-4495.12,0.0001967,2]
[365458210,1749681058732,-302.69,0.00019671,2]
[365458211,1749681058742,-8229.79741332,0.00019671,2]
[365458212,1749681058752,-480.0,0.00019671,2]
[365458213,1749681058762,-490.0,0.00019671,2]
[365458214,1749681058772,-490.0,0.00019671,2]
[365458215,1749681058781,-490.0,0.00019671,2]
[365458216,1749681058791,-490.0,0.00019671,2]
[365458217,1749681058801,-490.0,0.00019671,2]
[365458218,1749681058811,-152.14614387,0.00019671,2]
[365458219,1749681058821,-490.0,0.00019671,2]
[365458220,1749681058830,-490.0,0.00019671,2]
[365458221,1749681058840,-490.0,0.00019671,2]
[365458222,1749681058850,-490.0,0.00019671,2]
[365458223,1749681058859,-490.0,0.00019671,2]
[365458224,1749681058869,-196.29,0.00019671,2]
[365458225,1749681058879,-490.0,0.00019671,2]
[365458226,1749681058889,-490.0,0.00019671,2]
[365458227,1749681058900,-490.0,0.00019671,2]
[365458228,1749681058910,-490.0,0.00019671,2]
[365458229,1749681058920,-490.0,0.00019671,2]
[365458230,1749681058930,-490.0,0.00019671,2]
[365458231,1749681058939,-490.0,0.00019671,2]
[365458232,1749681058949,-490.0,0.00019671,2]
[365458233,1749681058959,-490.0,0.00019671,2]
[365458234,1749681058969,-558.25,0.00019671,2]
[365458235,1749681058979,-490.0,0.00019671,2]
[365458236,1749681058989,-490.0,0.00019671,2]
[365458237,1749681059000,-490.0,0.00019671,2]
[365458238,1749681059009,-490.0,0.00019671,2]
[365458239,1749681059019,-490.0,0.00019671,2]
[365458240,1749681059029,-490.0,0.00019671,2]
[365458241,1749681059039,-490.0,0.00019671,2]
[365458242,1749681059048,-490.0,0.00019671,2]
[365458243,1749681059058,-490.0,0.00019671,2]
[365458244,1749681059068,-490.0,0.00019671,2]
[365458245,1749681059079,-490.0,0.00019671,2]
[365458246,1749681059088,-490.0,0.00019671,2]
[365458247,1749681059099,-490.0,0.00019671,2]
[365458248,1749681059108,-490.0,0.00019671,2]
[365458249,1749681059119,-490.0,0.00019671,2]
[365458250,1749681059129,-490.0,0.00019671,2]
[365458251,1749681059140,-577.0,0.00019671,2]
[365458252,1749681059151,-490.0,0.00019671,2]
[365458253,1749681059160,-490.0,0.00019671,2]
[365458254,1749681059170,-490.0,0.00019671,2]
[365458255,1749681059180,-490.0,0.00019671,2]
[365458256,1749681059191,-633.85,0.00019671,2]
[365458257,1749681059201,-920.56,0.00019671,2]
[365458258,1749681059211,-490.0,0.00019671,2]
[365458259,1749681059221,-490.0,0.00019671,2]
[365458260,1749681059231,-490.0,0.00019671,2]
[365458261,1749681059241,-490.0,0.00019671,2]
[365458262,1749681059251,-490.0,0.00019671,2]
[365458263,1749681059261,-490.0,0.00019671,2]
[365458264,1749681059271,-490.0,0.00019671,2]
[365458265,1749681059280,-490.0,0.00019671,2]
[365458266,1749681059290,-492.05839154,0.00019671,2]
[365458267,1749681059300,-743.12,0.00019671,2]
[365458268,1749681059309,-490.0,0.00019671,2]
[365458269,1749681059319,-490.0,0.00019671,2]
[365458270,1749681059329,-490.0,0.00019671,2]
[365458271,1749681059339,-698.94,0.00019671,2]
[365458272,1749681059349,-490.0,0.00019671,2]
[365458273,1749681059361,-490.0,0.00019671,2]
[365458274,1749681059371,-490.0,0.00019671,2]
[365458275,1749681059380,-490.0,0.00019671,2]
[365458276,1749681059391,-490.0,0.00019671,2]
[365458277,1749681059402,-490.0,0.00019671,2]
[365458278,1749681059412,-548.17378479,0.00019671,2]
[365458279,1749681059421,-490.0,0.00019671,2]
[365458280,1749681059430,-490.0,0.00019671,2]
[365458281,1749681059441,-564.97,0.00019671,2]
[365458282,1749681059450,-490.0,0.00019671,2]
[365458283,1749681059460,-490.0,0.00019671,2]
[365458284,1749681059469,-490.0,0.00019671,2]
[365458285,1749681059478,-490.0,0.00019671,2]
[365458286,1749681059488,-1059.95,0.00019671,2]
[365458287,1749681059497,-490.0,0.00019671,2]
[365458288,1749681059506,-490.0,0.00019671,2]
[365458289,1749681059516,-525.32,0.00019671,2]
[365458290,1749681059525,-490.0,0.00019671,2]
[365458291,1749681059535,-490.0,0.00019671,2]
[365458292,1749681059544,-490.0,0.00019671,2]
[365458293,1749681059554,-456.85,0.00019671,2]
[365458294,1749681059563,-490.0,0.00019671,2]
[365458295,1749681059572,-490.0,0.00019671,2]
[365458296,1749681059582,-490.0,0.00019671,2]
[365458297,1749681059591,-490.0,0.00019671,2]
[365458298,1749681059601,-420.0,0.00019671,2]
[365458299,1749681059611,-490.0,0.00019671,2]
[365458300,1749681059620,-490.0,0.00019671,2]
[365458301,1749681059630,-1170.28,0.00019671,2]
[365458302,1749681059639,-525.01285441,0.00019671,2]
[365458303,1749681059649,-490.0,0.00019671,2]
[365458304,1749681059659,-556.35,0.00019671,2]
[365458305,1749681059668,-490.0,0.00019671,2]
[365458306,1749681059677,-490.0,0.00019671,2]
[365458307,1749681059687,-490.0,0.00019671,2]
[365458308,1749681059695,-490.0,0.00019671,2]
[365458309,1749681059705,-490.0,0.00019671,2]
[365458310,1749681059714,-837.36,0.00019671,2]
[365458311,1749681059724,-618.71,0.00019671,2]
[365458312,1749681059733,-559.78,0.00019671,2]
[365458313,1749681059741,-677.05,0.00019671,2]
[365458314,1749681059750,-490.0,0.00019671,2]
[365458315,1749681059759,-490.0,0.00019671,2]
[365458316,1749681059769,-490.0,0.00019671,2]
[365458317,1749681059778,-490.0,0.00019671,2]
[365458318,1749681059787,-490.0,0.00019671,2]
[365458319,1749681059797,-490.0,0.00019671,2]
[365458320,1749681059806,-748.31,0.00019671,2]
[365458321,1749681059816,-490.0,0.00019671,2]
[365458322,1749681059825,-609.06,0.00019671,2]
[365458323,1749681059834,-490.0,0.00019671,2]
[365458324,1749681059844,-490.0,0.00019671,2]
[365458325,1749681059853,-706.85,0.00019671,2]
[365458326,1749681059862,-683.53,0.00019671,2]
[365458327,1749681059871,-490.0,0.00019671,2]
[365458328,1749681059881,-490.0,0.00019671,2]
[365458329,1749681059891,-316.16,0.00019671,2]
[365458330,1749681059905,-490.0,0.00019671,2]
[365458331,1749681059915,-585.93628431,0.00019671,2]
[365458332,1749681059924,-490.0,0.00019671,2]
[365458333,1749681059933,-490.0,0.00019671,2]
[365458334,1749681059942,-490.0,0.00019671,2]
[365458335,1749681059951,-490.0,0.00019671,2]
[365458336,1749681059961,-1045.94,0.00019671,2]
[365458337,1749681059970,-490.0,0.00019671,2]
[365458338,1749681059980,-302.30300369,0.00019671,2]
[365458339,1749681059989,-490.0,0.00019671,2]
[365458340,1749681059999,-569.23,0.00019671,2]
[365458341,1749681060009,-1109.77,0.00019671,2]
[365458342,1749681060019,-664.08,0.00019671,2]
[365458343,1749681060028,-490.0,0.00019671,2]
[365458344,1749681060038,-490.0,0.00019671,2]
[365458345,1749681060048,-490.0,0.00019671,2]
[365458346,1749681060058,-490.0,0.00019671,2]
[365458347,1749681060067,-490.0,0.00019671,2]
[365458348,1749681060077,-490.0,0.00019671,2]
[365458349,1749681060087,-1027.39,0.00019671,2]
[365458350,1749681060096,-711.21,0.00019671,2]
[365458351,1749681060106,-522.66,0.00019671,2]
[365458352,1749681060116,-802.65,0.00019671,2]
[365458353,1749681060125,-490.0,0.00019671,2]
[365458354,1749681060135,-490.0,0.00019671,2]
[365458355,1749681060145,-574.1,0.00019671,2]
[365458356,1749681060154,-714.44,0.00019671,2]
[365458357,1749681060164,-490.0,0.00019671,2]
[365458358,1749681060173,-490.0,0.00019671,2]
[365458359,1749681060183,-490.0,0.00019671,2]
[365458360,1749681060192,-802.13,0.00019671,2]
[365458361,1749681060201,-676.83,0.00019671,2]
[365458362,1749681060210,-490.0,0.00019671,2]
[365458363,1749681060220,-741.95,0.00019671,2]
[365458364,1749681060229,-490.0,0.00019671,2]
[365458365,1749681060239,-506.68,0.00019671,2]
[365458366,1749681060248,-1639.27,0.00019671,2]
[365458367,1749681060258,-490.0,0.00019671,2]
[365458368,1749681060268,-688.28,0.00019671,2]
[365458369,1749681060277,-490.0,0.00019671,2]
[365458370,1749681060287,-490.0,0.00019671,2]
[365458371,1749681060296,-490.0,0.00019671,2]
[365458372,1749681060306,-683.16,0.00019671,2]
[365458373,1749681060316,-412.73,0.00019671,2]
[365458374,1749681060325,-727.68,0.00019671,2]
[365458375,1749681060335,-831.91,0.00019671,2]
[365458376,1749681060344,-490.0,0.00019671,2]
[365458377,1749681060354,-490.0,0.00019671,2]
[365458378,1749681060367,-490.0,0.00019671,2]
[365458379,1749681060376,-574.59801893,0.00019671,2]
[365458380,1749681060388,-627.0,0.00019671,2]
[365458381,1749681060399,-549.26,0.00019671,2]
[365458382,1749681060410,-490.0,0.00019671,2]
[365458383,1749681060419,-490.0,0.00019671,2]
[365458384,1749681060429,-634.08,0.00019671,2]
[365458385,1749681060442,-490.0,0.00019671,2]
[365458386,1749681060452,-490.0,0.00019671,2]
[365458387,1749681060462,-785.32,0.00019671,2]
[365458388,1749681060472,-549.18,0.00019671,2]
[365458389,1749681060482,-490.0,0.00019671,2]
[365458390,1749681060492,-490.0,0.00019671,2]
[365458391,1749681060502,-490.0,0.00019671,2]
[365458392,1749681060512,-1067.72,0.00019671,2]
[365458393,1749681060522,-490.0,0.00019671,2]
[365458394,1749681060532,-1091.48,0.00019671,2]
[365458395,1749681060541,-490.0,0.00019671,2]
[365458396,1749681060551,-490.0,0.00019671,2]
[365458397,1749681060560,-490.0,0.00019671,2]
[365458398,1749681060570,-490.0,0.00019671,2]
[365458399,1749681060580,-3015.97,0.00019671,2]
[365458400,1749681060590,-765.91,0.00019671,2]
[365458401,1749681060599,-631.38,0.00019671,2]
[365458402,1749681060671,-711.29,0.00019671,2]
[365458403,1749681060682,-606.94,0.00019671,2]
[365458404,1749681060691,-1000.0,0.00019671,2]
[365458405,1749681060700,-490.0,0.00019671,2]
[365458406,1749681060709,-490.0,0.00019671,2]
[365458407,1749681060718,-490.0,0.00019671,2]
[365458408,1749681060727,-860.284671,0.00019671,2]
[365458409,1749681060736,-2556.87,0.00019671,2]
[365458410,1749681060745,-413.52,0.00019671,2]
[365458411,1749681060755,-756.45,0.00019671,2]
[365458412,1749681060764,-682.16,0.00019671,2]
[365458413,1749681060773,-667.62,0.00019671,2]
[365458414,1749681060782,-1003.6,0.00019671,2]
[365458415,1749681060791,-725.13,0.00019671,2]
[365458416,1749681060801,-490.0,0.00019671,2]
[365458417,1749681060810,-490.0,0.00019671,2]
[365458418,1749681060819,-991.3,0.00019671,2]
[365458419,1749681060829,-644.68,0.00019671,2]
[365458420,1749681060838,-714.86,0.00019671,2]
[365458421,1749681060847,-769.78,0.00019671,2]
[365458422,1749681060857,-490.0,0.00019671,2]
[365458423,1749681060866,-1288.02,0.00019671,2]
[365458424,1749681060875,-3040.97,0.00019671,2]
[365458425,1749681060884,-490.0,0.00019671,2]
[365458426,1749681060900,-1041.13,0.00019671,2]
[365458427,1749681060909,-831.35,0.00019671,2]
[365458428,1749681060918,-645.9,0.00019671,2]
[365458429,1749681060927,-3039.27,0.00019671,2]
[365458430,1749681060937,-490.0,0.00019671,2]
[365458431,1749681060946,-490.0,0.00019671,2]
[365458432,1749681060955,-7683.51,0.00019671,2]
[365458433,1749681060964,-748.07,0.00019671,2]
[365458434,1749681060974,-1414.43,0.00019671,2]
[365458435,1749681060983,-793.8,0.00019671,2]
[365458436,1749681060993,-490.0,0.00019671,2]
[365458437,1749681061002,-351.23498169,0.00019671,2]
[365458438,1749681061011,-852.43,0.00019671,2]
[365458439,1749681061021,-490.0,0.00019671,2]
[365458440,1749681061030,-1711.26,0.00019671,2]
[365458441,1749681061040,-1775.86,0.00019671,2]
[365458442,1749681061049,-1484.9,0.00019671,2]
[365458443,1749681061058,-886.63,0.00019671,2]
[365458444,1749681061067,-553.95,0.00019671,2]
[365458445,1749681061077,-490.0,0.00019671,2]
[365458446,1749681061086,-417.64873198,0.00019671,2]
[365458447,1749681061095,-719.87,0.00019671,2]
[365458448,1749681061105,-490.0,0.00019671,2]
[365458449,1749681061114,-3435.38,0.00019671,2]
[365458450,1749681061123,-490.0,0.00019671,2]
[365458451,1749681061133,-1020.83,0.00019671,2]
[365458452,1749681061146,-637.51,0.00019671,2]
[365458453,1749681061156,-490.0,0.00019671,2]
[365458454,1749681061165,-490.0,0.00019671,2]
[365458455,1749681061176,-490.0,0.00019671,2]
[365458456,1749681061186,-490.0,0.00019671,2]
[365458457,1749681061197,-490.0,0.00019671,2]
[365458458,1749681061211,-490.0,0.00019671,2]
[365458459,1749681061221,-3565.37,0.00019671,2]
[365458460,1749681061230,-490.0,0.00019671,2]
[365458461,1749681061239,-591.24,0.00019671,2]
[365458462,1749681061249,-490.0,0.00019671,2]
[365458463,1749681061259,-1777.51,0.00019671,2]
[365458464,1749681061268,-490.0,0.00019671,2]
[365458465,1749681061277,-490.0,0.00019671,2]
[365458466,1749681061286,-490.0,0.00019671,2]
[365458467,1749681061295,-679.41,0.00019671,2]
[365458468,1749681061305,-490.0,0.00019671,2]
[365458469,1749681061314,-1199.01,0.00019671,2]
[365458470,1749681061324,-1168.01,0.00019671,2]
[365458471,1749681061333,-587.65,0.00019671,2]
[365458472,1749681061343,-495.62986113,0.00019671,2]
[365458473,1749681061352,-490.0,0.00019671,2]
[365458474,1749681061363,-1041.81,0.00019671,2]
[365458475,1749681061373,-490.0,0.00019671,2]
[365458476,1749681061383,-855.8,0.00019671,2]
[365458477,1749681061397,-490.0,0.00019671,2]
[365458478,1749681061406,-490.0,0.00019671,2]
[365458479,1749681061415,-2234.57,0.00019671,2]
[365458480,1749681061426,-683.01,0.00019671,2]
[365458481,1749681061436,-619.27,0.00019671,2]
[365458482,1749681061445,-5150.97,0.00019671,2]
[365458483,1749681061455,-490.0,0.00019671,2]
[365458484,1749681061465,-1497.1,0.00019671,2]
[365458485,1749681061474,-850.37,0.00019671,2]
[365458486,1749681061483,-1059.59,0.00019671,2]
[365458487,1749681061492,-490.0,0.00019671,2]
[365458488,1749681061501,-1397.52,0.00019671,2]
[365458489,1749681061510,-490.0,0.00019671,2]
[365458490,1749681061519,-548.84,0.00019671,2]
[365458491,1749681061529,-490.0,0.00019671,2]
[365458492,1749681061537,-828.39,0.00019671,2]
[365458493,1749681061546,-490.0,0.00019671,2]
[365458494,1749681061555,-490.0,0.00019671,2]
[365458495,1749681061564,-1213.57,0.00019671,2]
[365458496,1749681061573,-490.0,0.00019671,2]
[365458497,1749681061583,-490.0,0.00019671,2]
[365458498,1749681061591,-490.0,0.00019671,2]
[365458499,1749681061601,-490.0,0.00019671,2]
[365458500,1749681061610,-490.0,0.00019671,2]
[365458501,1749681061620,-565.48,0.00019671,2]
[365458502,1749681061629,-1132.46,0.00019671,2]
[365458503,1749681061640,-490.0,0.00019671,2]
[365458504,1749681061651,-490.0,0.00019671,2]
[365458505,1749681061660,-490.0,0.00019671,2]
[365458506,1749681061669,-680.41,0.00019671,2]
[365458507,1749681061678,-1500.61,0.00019671,2]
[365458508,1749681061687,-490.0,0.00019671,2]
[365458509,1749681061696,-490.0,0.00019671,2]
[365458510,1749681061706,-490.0,0.00019671,2]
[365458511,1749681061715,-490.0,0.00019671,2]
[365458512,1749681061724,-490.0,0.00019671,2]
[365458513,1749681061733,-490.0,0.00019671,2]
[365458514,1749681061742,-490.0,0.00019671,2]
[365458515,1749681061751,-490.0,0.00019671,2]
[365458516,1749681061759,-490.0,0.00019671,2]
[365458517,1749681061768,-490.0,0.00019671,2]
[365458518,1749681061778,-1529.53,0.00019671,2]
[365458519,1749681061787,-490.0,0.00019671,2]
[365458520,1749681061796,-884.29,0.00019671,2]
[365458521,1749681061806,-490.0,0.00019671,2]
[365458522,1749681061815,-490.0,0.00019671,2]
[365458523,1749681061825,-490.0,0.00019671,2]
[365458524,1749681061835,-490.0,0.00019671,2]
[365458525,1749681061844,-854.08,0.00019671,2]
[365458526,1749681061853,-1688.77,0.00019671,2]
[365458527,1749681061862,-11601.35,0.00019671,2]
[365458528,1749681061871,-1204.32,0.00019671,2]
[365458529,1749681061880,-490.0,0.00019671,2]
[365458530,1749681061891,-490.0,0.00019671,2]
[365458531,1749681061900,-490.0,0.00019671,2]
[365458532,1749681061910,-490.0,0.00019671,2]
[365458533,1749681061919,-490.0,0.00019671,2]
[365458534,1749681061929,-490.0,0.00019671,2]
[365458535,1749681061938,-490.0,0.00019671,2]
[365458536,1749681061947,-490.0,0.00019671,2]
[365458537,1749681061957,-490.0,0.00019671,2]
[365458538,1749681061966,-7216.4,0.00019671,2]
[365458539,1749681061976,-968.99,0.00019671,2]
[365458540,1749681061986,-1726.29,0.00019671,2]
[365458541,1749681061995,-3362.35,0.00019671,2]
[365458542,1749681062005,-490.0,0.00019671,2]
[365458543,1749681062014,-490.0,0.00019671,2]
[365458544,1749681062023,-490.0,0.00019671,2]
[365458545,1749681062032,-495.45,0.00019671,2]
[365458546,1749681062042,-2501.12,0.00019671,2]
[365458547,1749681062051,-490.0,0.00019671,2]
[365458548,1749681062060,-965.76,0.00019671,2]
[365458549,1749681062069,-490.0,0.00019671,2]
[365458550,1749681062078,-1300.5,0.00019671,2]
[365458551,1749681062087,-1487.82,0.00019671,2]
[365458552,1749681062096,-1956.07,0.00019671,2]
[365458553,1749681062106,-1837.1,0.00019671,2]
[365458554,1749681062116,-490.0,0.00019671,2]
[365458555,1749681062125,-545.32,0.00019671,2]
[365458556,1749681062135,-490.0,0.00019671,2]
[365458557,1749681062148,-806.15,0.00019671,2]
[365458558,1749681062157,-1121.62,0.00019671,2]
[365458559,1749681062169,-721.56,0.00019671,2]
[365458560,1749681062183,-490.0,0.00019671,2]
[365458561,1749681062193,-1928.5,0.00019671,2]
[365458562,1749681062202,-490.0,0.00019671,2]
[365458563,1749681062212,-2928.8,0.00019671,2]
[365458564,1749681062228,-490.0,0.00019671,2]
[365458565,1749681062245,-490.0,0.00019671,2]
[365458566,1749681062255,-490.0,0.00019671,2]
[365458567,1749681062265,-490.0,0.00019671,2]
[365458568,1749681062274,-490.0,0.00019671,2]
[365458569,1749681062284,-2307.04,0.00019671,2]
[365458570,1749681062293,-490.0,0.00019671,2]
[365458571,1749681062301,-2010.14,0.00019671,2]
[365458572,1749681062310,-1826.73,0.00019671,2]
[365458573,1749681062319,-490.0,0.00019671,2]
[365458574,1749681062328,-490.0,0.00019671,2]
[365458575,1749681062338,-539.96216091,0.00019671,2]
[365458576,1749681062346,-644.4,0.00019671,2]
[365458577,1749681062358,-917.9,0.00019671,2]
[365458578,1749681062367,-1409.81,0.00019671,2]
[365458579,1749681062377,-3019.45,0.00019671,2]
[365458580,1749681062385,-490.0,0.00019671,2]
[365458581,1749681062400,-490.0,0.00019671,2]
[365458582,1749681062410,-806.37,0.00019671,2]
[365458583,1749681062419,-1023.95,0.00019671,2]
[365458584,1749681062429,-894.43,0.00019671,2]
[365458585,1749681062439,-534.94,0.00019671,2]
[365458586,1749681062448,-490.0,0.00019671,2]
[365458587,1749681062457,-490.0,0.00019671,2]
[365458588,1749681062467,-490.0,0.00019671,2]
[365458589,1749681062476,-1493.56,0.00019671,2]
[365458590,1749681062485,-3038.48,0.00019671,2]
[365458591,1749681062494,-490.0,0.00019671,2]
[365458592,1749681062503,-490.0,0.00019671,2]
[365458593,1749681062512,-973.159661,0.00019671,2]
[365458594,1749681062522,-490.0,0.00019671,2]
[365458595,1749681062531,-490.0,0.00019671,2]
[365458596,1749681062540,-490.0,0.00019671,2]
[365458597,1749681062549,-1851.3,0.00019671,2]
[365458598,1749681062559,-490.0,0.00019671,2]
[365458599,1749681062568,-744.11,0.00019671,2]
[365458600,1749681062577,-490.0,0.00019671,2]
[365458601,1749681062587,-5490.07,0.00019671,2]
[365458602,1749681062596,-543.22,0.00019671,2]
[365458603,1749681062605,-490.0,0.00019671,2]
[365458604,1749681062614,-490.0,0.00019671,2]
[365458605,1749681062623,-490.0,0.00019671,2]
[365458606,1749681062632,-545.23,0.00019671,2]
[365458607,1749681062645,-1037.7176603,0.00019693,2]
[365458608,1749681062654,-5735.87293742,0.00019699,2]
[365458609,1749681062664,-300.0,0.000197,7]
[365458610,1749681062673,-2983.70592984,0.00019717,2]
[365458611,1749681062682,-1999.0,0.00019718,2]
[365458612,1749681062692,-206.779,0.00019718,2]
[365458613,1749681062701,-1672.0,0.00019718,2]
[365458614,1749681062710,-210.684,0.00019718,2]
[365458615,1749681062720,-1159.0,0.00019718,2]
[365458616,1749681062730,-462.51433961,0.00019721,2]
[365458617,1749681062740,-1000.0,0.00019721,2]
[365458618,1749681062750,-500.0,0.00019721,2]
[365458619,1749681062759,-1000.0,0.00019721,2]
[365458620,1749681062768,-1000.0,0.00019721,2]
[365458621,1749681062777,-1000.0,0.00019721,2]
[365458622,1749681062787,-1000.0,0.00019721,2]
[365458623,1749681062796,-1000.0,0.00019721,2]
[365458624,1749681062805,-490.0,0.00019726,2]
[365458625,1749681062815,-490.0,0.00019726,2]
[365458626,1749681062824,-159.60029558,0.00019726,2]
[365458627,1749681062834,-156.587,0.00019726,2]
[365458628,1749681062843,-1037.7176603,0.00019728,2]
[365458629,1749681062853,-595.0,0.00019734,2]
[365458630,1749681062863,-1680.0,0.00019735,2]
[365458631,1749681062872,-1037.7176603,0.00019762,2]
[365458632,1749681062882,-646.3629498,0.00019765,2]
[365458633,1749681062893,-266.54619826,0.00019777,2]
[365458634,1749681062903,-1037.7176603,0.00019797,2]
[365458635,1749681062913,-5735.87293742,0.00019799,2]
[365458636,1749681062922,-234.91397695,0.000198,2]
[365458637,1749681062932,-300.0,0.000198,7]
[365458638,1749681062942,-300.0,0.000198,2]